bitfinex/quotes_BTCUSD_20250522
["timestamp","ask_amount","ask_price","bid_price","bid_amount"]
[1747941789842,0.38293375,111720.0,111710.0,1.30941]
[1747941790645,0.38293375,111720.0,111710.0,1.10353286]
[1747941791057,0.38293375,111720.0,111710.0,1.22433286]
[1747941791701,0.38293375,111720.0,111710.0,1.10353286]
[1747941792968,0.26148819,111720.0,111710.0,3.35107786]
[1747941793184,0.23058819,111720.0,111710.0,3.35107786]
[1747941793448,0.38293375,111720.0,111710.0,1.10353286]
[1747941795253,0.38293375,111720.0,111710.0,0.49229286]
[1747941795442,0.38293375,111720.0,111710.0,1.10353286]
[1747941797386,0.38143375,111720.0,111710.0,1.10353286]
[1747941801622,0.38143375,111720.0,111710.0,0.49229286]
[1747941801826,0.38143375,111720.0,111710.0,1.10321286]
[1747941803194,0.34973375,111720.0,111710.0,1.10321286]
[1747941804714,0.38183375,111720.0,111710.0,1.10321286]
[1747941805533,0.38183375,111720.0,111710.0,0.15229286]
[1747941805741,0.38183375,111720.0,111710.0,0.76321286]
[1747941807034,0.38183375,111720.0,111710.0,0.15229286]
[1747941807240,0.38183375,111720.0,111710.0,0.76321286]
[1747941807654,0.6698981,111720.0,111710.0,0.76321286]
[1747941807848,0.38183375,111720.0,111710.0,0.49497286]
[1747941808195,0.38183375,111720.0,111710.0,0.76321286]
[1747941810403,0.38183375,111720.0,111710.0,0.76325286]
[1747941810963,0.17908149,111690.0,111680.0,0.34]
[1747941811209,0.17908149,111690.0,111680.0,1.72002]
[1747941812192,0.17908149,111690.0,111680.0,1.3773]
[1747941812401,0.17908149,111690.0,111680.0,1.9883]
[1747941813042,0.17908149,111690.0,111680.0,1.9913]
[1747941813568,0.18015265,111690.0,111680.0,1.9943]
[1747941813784,0.17908149,111690.0,111680.0,1.9943]
[1747941817867,0.17908149,111690.0,111680.0,1.9944]
[1747941818269,0.17908149,111690.0,111680.0,1.3834]
[1747941818482,0.17908149,111690.0,111680.0,2.38068]
[1747941823559,0.24358149,111690.0,111680.0,2.38068]
[1747941825398,0.24358149,111690.0,111680.0,2.38268]
[1747941827200,0.17908149,111690.0,111680.0,2.38268]
[1747941829677,0.21208149,111690.0,111680.0,2.38268]
[1747941829884,0.21208149,111690.0,111680.0,1.3854]
[1747941830103,0.33412705,111690.0,111680.0,0.7369]
[1747941830522,0.33412705,111690.0,111680.0,1.00518]
[1747941831339,0.33412705,111690.0,111680.0,1.00218]
[1747941831584,0.33412705,111690.0,111680.0,1.00418]
[1747941831761,0.33412705,111690.0,111680.0,1.00118]
[1747941832946,0.33412705,111690.0,111680.0,0.39042]
[1747941833155,0.33412705,111690.0,111680.0,0.73294]
[1747941833354,0.6221914,111690.0,111680.0,0.73294]
[1747941833539,0.6221914,111690.0,111680.0,1.00126]
[1747941833744,0.6221914,111690.0,111680.0,1.00326]
[1747941833983,0.64669225,111690.0,111680.0,0.39242]
[1747941834184,0.64669225,111690.0,111680.0,1.00326]
[1747941834410,0.72455364,111690.0,111680.0,0.99926]
[1747941834541,0.72555364,111690.0,111680.0,0.99926]
[1747941835149,0.72655364,111690.0,111680.0,0.99926]
[1747941835355,0.43848929,111690.0,111680.0,0.99926]
[1747941835757,0.43848929,111690.0,111680.0,0.38842]
[1747941835758,0.72655364,111690.0,111680.0,0.38842]
[1747941835961,0.64869225,111690.0,111680.0,0.99926]
[1747941837415,1.33469225,111690.0,111680.0,0.99926]
[1747941838016,1.0466279,111690.0,111680.0,0.38842]
[1747941838228,1.02212705,111690.0,111680.0,0.9993]
[1747941843314,0.17911517,111660.0,111650.0,0.063]
[1747941843543,0.17911517,111660.0,111650.0,2.653105]
[1747941844104,0.18807076,111660.0,111650.0,2.653105]
[1747941844310,0.27761632,111660.0,111650.0,0.34256]
[1747941844523,0.27761632,111660.0,111650.0,0.61097075]
[1747941845197,0.27761632,111660.0,111650.0,0.61397075]
[1747941845365,0.27761632,111660.0,111650.0,0.95397075]
[1747941845735,0.27761632,111660.0,111650.0,0.95697075]
[1747941848318,0.27761632,111660.0,111650.0,1.34337075]
[1747941848515,0.18807076,111660.0,111650.0,1.40817075]
[1747941848881,0.18807076,111660.0,111650.0,1.34337075]
[1747941849570,0.18807076,111660.0,111650.0,1.07501075]
[1747941849755,0.18807076,111660.0,111650.0,1.34337075]
[1747941851733,0.18807076,111660.0,111650.0,1.07505075]
[1747941851946,0.27761632,111660.0,111650.0,1.07505075]
[1747941852155,0.34101632,111660.0,111650.0,0.73505075]
[1747941852385,0.34101632,111660.0,111650.0,1.00341075]
[1747941853023,0.34101632,111660.0,111650.0,1.00041075]
[1747941853494,0.34101632,111660.0,111650.0,1.00241075]
[1747941853718,0.34101632,111660.0,111650.0,0.99941075]
[1747941854195,0.34101632,111660.0,111650.0,1.00141075]
[1747941855327,0.18807076,111660.0,111650.0,3.31115575]
[1747941855546,0.19702627,111660.0,111650.0,3.65115575]
[1747941855992,0.18807076,111660.0,111650.0,3.65115575]
[1747941856219,0.17911517,111660.0,111650.0,3.83924344]
[1747941857081,0.17911517,111660.0,111650.0,3.83028696]
[1747941857282,0.17911517,111660.0,111650.0,3.65115575]
[1747941857558,0.17909913,111670.0,111660.0,0.00895551]
[1747941857774,0.188054,111670.0,111660.0,2.65458363]
[1747941858008,0.188054,111670.0,111660.0,2.652345]
[1747941858901,0.188054,111670.0,111660.0,2.653345]
[1747941859127,0.188054,111670.0,111660.0,2.654345]
[1747941861794,0.188054,111670.0,111660.0,3.012655]
[1747941863597,0.19700863,111670.0,111660.0,3.32272311]
[1747941863804,0.19700863,111670.0,111660.0,3.72746141]
[1747941864392,0.19700863,111670.0,111660.0,3.012655]
[1747941864605,0.19700863,111670.0,111660.0,3.623375]
[1747941867559,0.19700863,111670.0,111660.0,3.81144592]
[1747941867781,0.19700863,111670.0,111660.0,3.623335]
[1747941870204,0.19700863,111670.0,111660.0,3.290215]
[1747941870410,0.19700863,111670.0,111660.0,3.558535]
[1747941870612,0.19700863,111670.0,111660.0,3.589835]
[1747941871189,0.19700863,111670.0,111660.0,3.619935]
[1747941872806,0.19700863,111670.0,111660.0,3.80800584]
[1747941873108,0.188054,111670.0,111660.0,3.79905017]
[1747941873348,0.188054,111670.0,111660.0,3.619935]
[1747941874195,0.188054,111670.0,111660.0,3.589835]
[1747941874398,0.188054,111670.0,111660.0,3.558535]
[1747941875024,0.188054,111670.0,111660.0,2.26027]
[1747941875025,0.253554,111670.0,111660.0,2.26027]
[1747941875230,0.253554,111670.0,111660.0,2.52859]
[1747941876029,0.253554,111670.0,111660.0,1.60157]
[1747941876235,0.253554,111670.0,111660.0,1.86989]
[1747941878247,0.253554,111670.0,111660.0,1.60157]
[1747941878449,0.253554,111670.0,111660.0,1.86989]
[1747941879282,0.253554,111670.0,111660.0,1.50969]
[1747941881596,0.253554,111670.0,111660.0,1.49259]
[1747941884946,0.253554,111670.0,111660.0,0.88191]
[1747941885159,0.253554,111670.0,111660.0,1.49259]
[1747941886159,0.188054,111670.0,111660.0,1.49259]
[1747941886948,0.248754,111670.0,111660.0,1.49259]
[1747941887566,0.248754,111670.0,111660.0,1.47109]
[1747941889385,0.248754,111670.0,111660.0,1.85745]
[1747941890423,0.248754,111670.0,111660.0,1.67104613]
[1747941890604,0.248754,111670.0,111660.0,1.51745]
[1747941892406,0.248754,111670.0,111660.0,1.85745]
[1747941894581,0.248754,111670.0,111660.0,1.84545]
[1747941894792,0.248754,111670.0,111660.0,1.81895]
[1747941895765,0.248754,111670.0,111660.0,1.79855]
[1747941896355,0.248754,111670.0,111660.0,1.80023]
[1747941896786,0.248754,111670.0,111660.0,1.82643]
[1747941901667,0.188054,111670.0,111660.0,1.82643]
[1747941901897,0.188054,111670.0,111660.0,1.21407]
[1747941902112,0.188054,111670.0,111660.0,1.89103]
[1747941902621,0.17911361,111680.0,111670.0,0.3703]
[1747941902871,0.18108149,111690.0,111670.0,2.83879908]
[1747941903131,0.17911361,111680.0,111670.0,0.7614]
[1747941903374,0.17911361,111680.0,111670.0,3.621305]
[1747941904044,0.17911361,111680.0,111670.0,3.622305]
[1747941904654,0.17911361,111680.0,111670.0,3.810359]
[1747941904866,0.18108149,111690.0,111670.0,3.80140413]
[1747941905095,0.18108149,111690.0,111680.0,2.58978325]
[1747941905321,0.18108149,111690.0,111680.0,2.945715]
[1747941906226,0.18108149,111690.0,111680.0,2.977315]
[1747941906900,0.18108149,111690.0,111680.0,3.008615]
[1747941907383,0.18208149,111690.0,111680.0,3.008615]
[1747941907589,0.18308149,111690.0,111680.0,3.008615]
[1747941909526,0.18208149,111690.0,111680.0,3.008615]
[1747941909876,0.18108149,111690.0,111680.0,3.008615]
[1747941910280,0.18108149,111690.0,111680.0,2.945715]
[1747941910489,0.24258149,111690.0,111680.0,1.42567]
[1747941910833,0.24258149,111690.0,111680.0,2.03799]
[1747941911599,0.24258149,111690.0,111680.0,1.69279]
[1747941912209,0.18108149,111690.0,111680.0,1.69279]
[1747941912373,0.20792639,111690.0,111680.0,1.75509]
[1747941912952,0.19897352,111690.0,111680.0,1.94312724]
[1747941913368,0.19002041,111690.0,111680.0,1.94312724]
[1747941913668,0.19002041,111690.0,111680.0,1.76404415]
[1747941913871,0.19002041,111690.0,111680.0,1.75509]
[1747941914463,0.19002041,111690.0,111680.0,1.48677]
[1747941914701,0.19002041,111690.0,111680.0,1.75505]
[1747941918330,0.19002041,111690.0,111680.0,1.93413309]
[1747941918598,0.19002041,111690.0,111680.0,1.94308716]
[1747941918809,0.01990598,111690.0,111680.0,1.46175498]
[1747941919001,0.19897344,111690.0,111680.0,1.69271]
[1747941919136,0.19897344,111690.0,111680.0,1.08047]
[1747941919345,0.26407344,111690.0,111680.0,1.69295]
[1747941921305,0.26407344,111690.0,111680.0,1.08047]
[1747941921463,0.26407344,111690.0,111680.0,1.69295]
[1747941922504,0.26407344,111690.0,111680.0,1.42467]
[1747941922881,0.26407344,111690.0,111680.0,1.69295]
[1747941927399,0.26407344,111690.0,111680.0,1.69305]
[1747941927994,0.01095311,111690.0,111680.0,1.87213309]
[1747941928194,0.01990582,111690.0,111680.0,1.96329514]
[1747941928394,0.21687918,111690.0,111680.0,1.96329514]
[1747941928640,0.20792631,111690.0,111680.0,1.9632953]
[1747941929160,0.20792631,111690.0,111680.0,1.97224905]
[1747941929363,0.20792671,111690.0,111680.0,1.9632953]
[1747941930442,0.19897368,111690.0,111680.0,1.9632953]
[1747941931326,0.19897368,111690.0,111680.0,1.97224921]
[1747941931499,0.002,111690.0,111680.0,2.08528889]
[1747941931686,0.02885861,111690.0,111680.0,2.08528889]
[1747941933072,0.02885861,111690.0,111680.0,2.1138514]
[1747941933574,0.21687902,111690.0,111680.0,2.08505881]
[1747941933779,0.21687902,111690.0,111680.0,2.09401256]
[1747941933995,0.0378118,111690.0,111680.0,2.09401176]
[1747941934545,0.002,111690.0,111680.0,2.09401176]
[1747941934746,0.01990566,111690.0,111680.0,2.09401176]
[1747941934957,0.02885877,111690.0,111680.0,2.06544925]
[1747941935154,0.03781196,111690.0,111680.0,2.06544925]
[1747941935857,0.01990566,111690.0,111680.0,2.06544925]
[1747941936200,0.02885885,111690.0,111680.0,2.06544925]
[1747941936502,0.03781196,111690.0,111680.0,2.06544925]
[1747941937982,0.02885877,111690.0,111680.0,2.06544925]
[1747941938415,0.002,111690.0,111680.0,2.06544925]
[1747941938620,0.00895223,111700.0,111690.0,0.624467]
[1747941938621,0.02685661,111700.0,111690.0,0.624467]
[1747941938826,0.2148601,111700.0,111690.0,2.96155756]
[1747941939051,0.03580908,111700.0,111690.0,3.31968756]
[1747941939692,0.01150218,111710.0,111700.0,0.54590795]
[1747941939892,0.0294051,111710.0,111700.0,3.58319135]
[1747941940113,0.03835676,111710.0,111700.0,3.94129135]
[1747941940293,0.04730851,111710.0,111700.0,3.94129135]
[1747941940490,0.0294051,111710.0,111700.0,3.94129135]
[1747941940697,0.21739176,111710.0,111700.0,3.94129135]
[1747941940862,0.03835676,111710.0,111700.0,3.94129135]
[1747941941068,0.03840749,111710.0,111700.0,3.94129135]
[1747941941273,0.02050425,111710.0,111700.0,3.94129135]
[1747941941473,0.01155275,111710.0,111700.0,3.94129135]
[1747941941681,0.02050409,111710.0,111700.0,3.94229135]
[1747941942151,0.02945519,111710.0,111700.0,3.94229135]
[1747941942352,0.02945519,111710.0,111700.0,3.94429135]
[1747941943414,0.02945519,111710.0,111700.0,4.36119135]
[1747941943630,0.02050401,111710.0,111700.0,4.36119135]
[1747941943948,0.02945543,111710.0,111700.0,3.74879135]
[1747941944204,0.21744201,111710.0,111700.0,3.72193498]
[1747941944365,0.26113973,111710.0,111700.0,3.977905]
[1747941946557,0.22993973,111710.0,111700.0,3.977905]
[1747941946728,0.19953973,111710.0,111700.0,4.15695602]
[1747941946925,0.19953973,111710.0,111700.0,4.17486072]
[1747941947124,0.19953973,111710.0,111700.0,4.16590849]
[1747941947327,0.19058831,111710.0,111700.0,4.16590849]
[1747941948129,0.19058831,111710.0,111700.0,4.15695602]
[1747941948359,0.19058831,111710.0,111700.0,4.16590857]
[1747941948684,0.19058831,111710.0,111700.0,4.18381319]
[1747941948910,0.19058831,111710.0,111700.0,4.17486096]
[1747941949174,0.19058831,111710.0,111700.0,4.16590857]
[1747941949393,0.19058831,111710.0,111700.0,3.74900857]
[1747941950587,0.19058831,111710.0,111700.0,3.75796088]
[1747941950788,0.02050433,111710.0,111700.0,4.29615151]
[1747941951005,0.20849043,111710.0,111700.0,4.31989952]
[1747941951408,0.20849043,111710.0,111700.0,4.25719952]
[1747941951575,0.20849099,111710.0,111700.0,4.25719952]
[1747941952476,0.20849099,111710.0,111700.0,4.24824729]
[1747941952675,0.19953981,111710.0,111700.0,4.24824729]
[1747941953265,0.25248839,111710.0,111700.0,4.05129141]
[1747941953654,0.25248839,111710.0,111700.0,4.23034243]
[1747941953801,0.25248839,111710.0,111700.0,3.42439056]
[1747941954010,0.25248839,111710.0,111700.0,3.946725]
[1747941954861,0.25248839,111710.0,111700.0,3.77815341]
[1747941957800,0.19058839,111710.0,111700.0,3.77815341]
[1747941957960,0.19058839,111710.0,111700.0,3.95720443]
[1747941958167,0.18163673,111710.0,111700.0,3.77815341]
[1747941958577,0.24483673,111710.0,111700.0,3.77815341]
[1747941960193,0.18163673,111710.0,111700.0,3.77815341]
[1747941960904,0.24633673,111710.0,111700.0,3.77815341]
[1747941961344,0.18163673,111710.0,111700.0,3.77815341]
[1747941961539,0.18163673,111710.0,111700.0,3.99785682]
[1747941961742,0.18163673,111710.0,111700.0,3.98890443]
[1747941961944,0.18163673,111710.0,111700.0,3.77815341]
[1747941964737,0.18163673,111710.0,111700.0,3.77825341]
[1747941964946,0.24543673,111710.0,111700.0,3.77825341]
[1747941966359,0.02050441,111710.0,111700.0,3.97520913]
[1747941966934,0.19953997,111710.0,111700.0,3.77825341]
[1747941967334,0.19953997,111710.0,111700.0,3.96625698]
[1747941967806,0.19953997,111710.0,111700.0,3.97520945]
[1747941968025,0.19953997,111710.0,111700.0,3.98416168]
[1747941968358,0.19953997,111710.0,111700.0,3.97520945]
[1747941969264,0.19953997,111710.0,111700.0,3.99311407]
[1747941969475,0.19953997,111710.0,111700.0,3.98416184]
[1747941970970,0.19953997,111710.0,111700.0,3.97520945]
[1747941971206,0.19953997,111710.0,111700.0,3.98416168]
[1747941971330,0.19953997,111710.0,111700.0,3.97520945]
[1747941972018,0.19953997,111710.0,111700.0,3.98416176]
[1747941972225,0.19953997,111710.0,111700.0,3.99311391]
[1747941972420,0.19953997,111710.0,111700.0,3.98416176]
[1747941972585,0.19953997,111710.0,111700.0,3.97520945]
[1747941972797,0.19058839,111710.0,111700.0,3.97520945]
[1747941973347,0.19058839,111710.0,111700.0,3.80378104]
[1747941973869,0.19058839,111710.0,111700.0,3.79482857]
[1747941974074,0.18163673,111710.0,111700.0,3.52662857]
[1747941974285,0.24253673,111710.0,111700.0,2.994945]
[1747941974486,0.24253673,111710.0,111700.0,3.606825]
[1747941975275,0.24253673,111710.0,111700.0,3.946825]
[1747941982230,0.24253673,111710.0,111700.0,3.334945]
[1747941982430,0.24253673,111710.0,111700.0,3.946985]
[1747941983283,0.24253673,111710.0,111700.0,4.14394104]
[1747941983506,0.24253673,111710.0,111700.0,3.946985]
[1747941984803,0.24253673,111710.0,111700.0,3.723644]
[1747941992889,0.24253673,111710.0,111700.0,3.455444]
[1747941993087,0.24253673,111710.0,111700.0,3.723644]
[1747941993811,0.01155315,111710.0,111700.0,3.91164741]
[1747941994036,0.03840733,111710.0,111700.0,3.96125163]
[1747941994259,0.02945567,111710.0,111700.0,3.97020362]
[1747941994437,0.02050425,111710.0,111700.0,3.97020362]
[1747941994661,0.02945583,111710.0,111700.0,3.97020362]
[1747941994871,0.03840749,111710.0,111700.0,3.97020362]
[1747941995262,0.04735924,111710.0,111700.0,3.96125163]
[1747941996457,0.21744306,111710.0,111700.0,3.92059956]
[1747941997004,0.21744306,111710.0,111700.0,3.92955163]
[1747941997442,0.21744306,111710.0,111700.0,3.92059956]
[1747941999667,0.02050465,111710.0,111700.0,4.01014512]
[1747941999907,0.21744306,111710.0,111700.0,4.01909719]
[1747942000066,0.02050465,111710.0,111700.0,4.05814918]
[1747942000723,0.02945631,111710.0,111700.0,4.05814918]
[1747942001213,0.03840806,111710.0,111700.0,4.04919719]
[1747942001428,0.21744306,111710.0,111700.0,4.04919719]
[1747942001616,0.21744306,111710.0,111700.0,4.01909719]
[1747942002340,0.21744306,111710.0,111700.0,4.01909751]
[1747942003052,0.21744306,111710.0,111700.0,3.74194528]
[1747942003200,0.21744306,111710.0,111700.0,4.00119297]
[1747942003201,0.20849172,111710.0,111700.0,4.00119297]
[1747942005076,0.19954014,111710.0,111700.0,4.00119297]
[1747942005315,0.19954014,111710.0,111700.0,4.00119313]
[1747942005316,0.25558848,111710.0,111700.0,4.00119313]
[1747942005482,0.25558848,111710.0,111700.0,4.0101456]
[1747942005898,0.24663673,111710.0,111700.0,3.723644]
[1747942009724,0.18163673,111710.0,111700.0,3.723644]
[1747942010155,0.21343673,111710.0,111700.0,3.723644]
[1747942010352,0.24393673,111710.0,111700.0,3.723644]
[1747942011219,0.21343673,111710.0,111700.0,3.723644]
[1747942011869,0.21343673,111710.0,111700.0,3.90269502]
[1747942012073,0.21343673,111710.0,111700.0,3.723644]
[1747942012222,0.21343673,111710.0,111700.0,3.90269502]
[1747942012578,0.18163673,111710.0,111700.0,3.723644]
[1747942013055,0.28923608,111720.0,111700.0,3.92955171]
[1747942013266,0.17900415,111730.0,111720.0,0.52796983]
[1747942013466,0.17900415,111730.0,111720.0,2.979364]
[1747942013674,0.17900415,111730.0,111720.0,2.722244]
[1747942013891,0.17909573,111740.0,111720.0,3.337404]
[1747942014141,0.18793587,111740.0,111730.0,2.36644127]
[1747942014348,0.18793619,111740.0,111730.0,2.364204]
[1747942014551,0.18793619,111740.0,111730.0,2.722214]
[1747942014754,0.18793619,111740.0,111730.0,2.90121695]
[1747942015744,0.18793619,111740.0,111730.0,2.90221695]
[1747942018497,0.17898693,111740.0,111730.0,2.90221695]
[1747942018699,0.18793619,111740.0,111730.0,2.90221695]
[1747942018897,0.05712951,111740.0,111730.0,2.90221695]
[1747942019209,0.06607877,111740.0,111730.0,2.90221695]
[1747942020851,0.08397729,111740.0,111730.0,2.90221695]
[1747942021076,0.01789844,111740.0,111730.0,2.90221695]
[1747942021423,0.20583471,111740.0,111730.0,2.90221695]
[1747942022670,0.0089487,111740.0,111730.0,2.92011699]
[1747942022879,0.01789764,111740.0,111730.0,2.91116701]
[1747942023093,0.02684666,111740.0,111730.0,2.91116701]
[1747942023475,0.03579592,111740.0,111730.0,2.91116701]
[1747942025147,0.24666254,111750.0,111730.0,2.91116701]
[1747942025326,0.01789828,111740.0,111730.0,0.89591299]
[1747942025498,0.01789828,111740.0,111730.0,3.53515699]
[1747942025713,0.24681475,111750.0,111740.0,0.17898693]
[1747942026049,0.24681475,111750.0,111740.0,2.56116093]
[1747942026456,0.06775221,111750.0,111740.0,2.90116093]
[1747942026673,0.03794501,111750.0,111740.0,2.91011027]
[1747942026848,0.21691648,111750.0,111740.0,2.91011027]
[1747942027070,0.21691648,111750.0,111740.0,2.90116093]
[1747942028237,0.21691648,111750.0,111740.0,2.91011027]
[1747942028437,0.21691648,111750.0,111740.0,2.91905953]
[1747942028617,0.20896834,111750.0,111740.0,2.90116093]
[1747942029068,0.20896834,111750.0,111740.0,2.90126093]
[1747942030113,0.27386834,111750.0,111740.0,2.90126093]
[1747942030916,0.26492012,111750.0,111740.0,2.90126093]
[1747942031998,0.25597166,111750.0,111740.0,2.90126093]
[1747942035282,0.01210003,111750.0,111740.0,2.92810799]
[1747942035489,0.20896754,111750.0,111740.0,2.94945921]
[1747942035688,0.21791584,111750.0,111740.0,2.94945929]
[1747942035900,0.21791584,111750.0,111740.0,2.94945937]
[1747942036107,0.21791584,111750.0,111740.0,2.95840847]
[1747942036299,0.21791584,111750.0,111740.0,2.94945937]
[1747942036465,0.21791584,111750.0,111740.0,2.95840847]
[1747942036880,0.21791584,111750.0,111740.0,2.94945937]
[1747942037466,0.21791584,111750.0,111740.0,2.95840847]
[1747942038431,0.21791584,111750.0,111740.0,2.96735749]
[1747942038608,0.21791584,111750.0,111740.0,2.99815749]
[1747942038810,0.21791584,111750.0,111740.0,3.00710603]
[1747942038811,0.03894485,111750.0,111740.0,3.00710603]
[1747942039352,0.03894485,111750.0,111740.0,2.99815717]
[1747942039514,0.03894485,111750.0,111740.0,3.00710603]
[1747942039699,0.03894485,111750.0,111740.0,2.99815717]
[1747942039910,0.21791576,111750.0,111740.0,3.36637921]
[1747942040339,0.21791576,111750.0,111740.0,3.33557921]
[1747942040555,0.20896794,111750.0,111740.0,3.29633011]
[1747942040726,0.20896794,111750.0,111740.0,3.29633019]
[1747942040924,0.20896794,111750.0,111740.0,3.30527937]
[1747942041765,0.20896794,111750.0,111740.0,3.29633019]
[1747942041920,0.20896794,111750.0,111740.0,3.30527937]
[1747942043166,0.20001988,111750.0,111740.0,3.29633019]
[1747942043363,0.25447158,111750.0,111740.0,3.108394]
[1747942043594,0.25447158,111750.0,111740.0,3.721354]
[1747942043995,0.25447158,111750.0,111740.0,3.108394]
[1747942044197,0.25447158,111750.0,111740.0,3.721354]
[1747942050186,0.22197158,111750.0,111740.0,3.108394]
[1747942050387,0.19107158,111750.0,111740.0,3.108394]
[1747942050769,0.19107158,111750.0,111740.0,3.751454]
[1747942051122,0.19107158,111750.0,111740.0,3.721354]
[1747942052064,0.19107158,111750.0,111740.0,3.473658]
[1747942056200,0.19107158,111750.0,111740.0,3.66159411]
[1747942056403,0.19107158,111750.0,111740.0,3.65264493]
[1747942056610,0.19107158,111750.0,111740.0,3.473658]
[1747942056813,0.18212312,111750.0,111740.0,3.473658]
[1747942061096,0.18212312,111750.0,111740.0,3.506558]
[1747942061303,0.18212312,111750.0,111740.0,3.538058]
[1747942061679,0.18212312,111750.0,111740.0,3.473658]
[1747942063081,0.24262563,111760.0,111750.0,0.34]
[1747942063286,0.24313288,111760.0,111750.0,2.474448]
[1747942063783,0.21203288,111760.0,111750.0,2.474448]
[1747942064191,0.24433288,111760.0,111750.0,2.474448]
[1747942066158,0.24233288,111760.0,111750.0,2.474448]
[1747942066485,0.24233288,111760.0,111750.0,2.742568]
[1747942068935,0.24233288,111760.0,111750.0,2.474448]
[1747942069159,0.24233288,111760.0,111750.0,3.087408]
[1747942076300,0.24233288,111760.0,111750.0,2.474448]
[1747942076521,0.24233288,111760.0,111750.0,3.085448]
[1747942077209,0.24233288,111760.0,111750.0,2.474448]
[1747942077502,0.24233288,111760.0,111750.0,3.085448]
[1747942077702,0.24233288,111760.0,111750.0,2.474448]
[1747942077905,0.24233288,111760.0,111750.0,3.085448]
[1747942078297,0.24233288,111760.0,111750.0,2.474448]
[1747942078499,0.24233288,111760.0,111750.0,3.085448]
[1747942079732,0.24233288,111760.0,111750.0,2.474448]
[1747942080442,0.24233288,111760.0,111750.0,3.085448]
[1747942080886,0.24233288,111760.0,111750.0,2.474448]
[1747942081198,0.24233288,111760.0,111750.0,3.085448]
[1747942081303,0.24233288,111760.0,111750.0,1.89694]
[1747942081528,0.24233288,111760.0,111750.0,2.50794]
[1747942081949,0.24233288,111760.0,111750.0,1.89694]
[1747942082148,0.24233288,111760.0,111750.0,2.50794]
[1747942082344,0.24233288,111760.0,111750.0,1.89694]
[1747942082576,0.24233288,111760.0,111750.0,2.50794]
[1747942082799,0.24233288,111760.0,111750.0,1.89694]
[1747942082800,0.17953288,111760.0,111750.0,1.89694]
[1747942082974,0.17953288,111760.0,111750.0,2.50794]
[1747942084210,0.24374689,111770.0,111750.0,2.50794]
[1747942084412,0.17898439,111780.0,111760.0,2.47668755]
[1747942084641,0.11348114,111780.0,111770.0,2.450508]
[1747942084841,0.11348114,111780.0,111770.0,2.445227]
[1747942085072,0.11348114,111780.0,111770.0,2.803107]
[1747942085835,0.11348114,111780.0,111770.0,2.129107]
[1747942087527,0.11460299,111780.0,111770.0,1.47864]
[1747942088678,0.11460299,111780.0,111770.0,0.86768]
[1747942088896,0.11460299,111780.0,111770.0,1.47864]
[1747942089464,0.11460299,111780.0,111770.0,0.86768]
[1747942089703,0.11460299,111780.0,111770.0,1.47864]
[1747942091203,0.11460299,111780.0,111770.0,1.27399711]
[1747942093148,5.069e-05,111780.0,111770.0,1.88387586]
[1747942093331,0.01794209,111780.0,111770.0,1.98796227]
[1747942093883,0.03583421,111780.0,111770.0,1.98796243]
[1747942094110,0.03583413,111780.0,111770.0,1.99690889]
[1747942094272,0.21475701,111780.0,111770.0,1.98796243]
[1747942094472,0.19686561,111780.0,111770.0,1.76764267]
[1747942094672,0.18791963,111780.0,111770.0,1.06813711]
[1747942094976,0.18791963,111780.0,111770.0,1.61495711]
[1747942095201,0.18791963,111780.0,111770.0,1.61595711]
[1747942097511,0.18791963,111780.0,111770.0,1.00503711]
[1747942097715,0.18791963,111780.0,111770.0,1.61591711]
[1747942098956,0.18791963,111780.0,111770.0,1.34783711]
[1747942099123,0.18791963,111780.0,111770.0,1.61601711]
[1747942100431,0.17897357,111780.0,111770.0,1.67911711]
[1747942103531,0.17897357,111780.0,111770.0,1.52056677]
[1747942104619,0.17897357,111780.0,111770.0,1.87842677]
[1747942106525,0.17897357,111780.0,111770.0,1.61034677]
[1747942106765,0.17897357,111780.0,111770.0,2.26442677]
[1747942107387,0.17897357,111780.0,111770.0,2.44336566]
[1747942107819,0.17897357,111780.0,111770.0,2.10336566]
[1747942110971,0.17897357,111780.0,111770.0,2.44336566]
[1747942111110,0.17897357,111780.0,111770.0,1.93324677]
[1747942111390,0.17897357,111780.0,111770.0,2.20132677]
[1747942111391,0.24284473,111780.0,111770.0,2.20132677]
[1747942111585,0.17897357,111780.0,111770.0,2.20132677]
[1747942111799,0.18004473,111780.0,111770.0,2.20132677]
[1747942112034,0.24284473,111780.0,111770.0,2.20124677]
[1747942112293,0.24177357,111780.0,111770.0,2.20124677]
[1747942112930,0.33131913,111780.0,111770.0,1.42868]
[1747942113233,0.33131913,111780.0,111770.0,1.69676]
[1747942114469,0.33131913,111780.0,111770.0,1.08596]
[1747942114667,0.33131913,111780.0,111770.0,1.69676]
[1747942115738,0.33131913,111780.0,111770.0,1.42868]
[1747942115886,0.33131913,111780.0,111770.0,1.69676]
[1747942117131,0.33131913,111780.0,111770.0,1.42868]
[1747942117342,0.33131913,111780.0,111770.0,1.69676]
[1747942118479,0.33131913,111780.0,111770.0,1.08596]
[1747942118605,0.33131913,111780.0,111770.0,1.69676]
[1747942122960,0.33131913,111780.0,111770.0,1.42868]
[1747942123143,0.33131913,111780.0,111770.0,1.08868]
[1747942123344,0.67676304,111780.0,111770.0,1.35676]
[1747942123556,0.33131913,111780.0,111770.0,1.69676]
[1747942123954,0.33131913,111780.0,111770.0,1.69576]
[1747942124157,0.33131913,111780.0,111770.0,1.69476]
[1747942124414,0.33131913,111780.0,111770.0,1.44340481]
[1747942124611,0.33968083,111780.0,111770.0,1.44340481]
[1747942125648,0.34168083,111780.0,111770.0,1.44340481]
[1747942126260,0.34368083,111780.0,111770.0,1.44348481]
[1747942126870,0.33531913,111780.0,111770.0,0.83260481]
[1747942127066,0.33531913,111780.0,111770.0,1.44348481]
[1747942129479,0.33531913,111780.0,111770.0,0.83260481]
[1747942129602,0.33531913,111780.0,111770.0,1.44348481]
[1747942133262,0.33531913,111780.0,111770.0,1.17536481]
[1747942133461,0.33531913,111780.0,111770.0,1.44348481]
[1747942134834,0.33531913,111780.0,111770.0,1.44358481]
[1747942137656,0.33531913,111780.0,111770.0,1.44058481]
[1747942139692,0.33531913,111780.0,111770.0,1.45058481]
[1747942140351,0.27251913,111780.0,111770.0,1.45058481]
[1747942141044,0.27251913,111780.0,111770.0,1.48228481]
[1747942141242,0.27251913,111780.0,111770.0,1.51468481]
[1747942142088,0.27251913,111780.0,111770.0,1.48228481]
[1747942142297,0.27251913,111780.0,111770.0,1.45058481]
[1747942143742,0.27251913,111780.0,111770.0,1.51478481]
[1747942144024,0.18297357,111780.0,111770.0,1.51478481]
[1747942144225,0.18297357,111780.0,111770.0,3.28069881]
[1747942146801,0.18297357,111780.0,111770.0,3.04231308]
[1747942149038,0.18297357,111780.0,111770.0,2.837174]
[1747942151627,0.18297357,111780.0,111770.0,3.177174]